bitfinex-derivatives/quotes_ETHF0:USTF0_20240923
["timestamp","ask_amount","ask_price","bid_price","bid_amount"]
[1727066124011,0.3758,2660.8,2659.8,3.58374]
[1727066124012,3.2078,2660.8,2659.8,3.58374]
[1727066124204,2.53,2660.9,2659.8,3.58374]
[1727066124205,3.58366,2660.4,2659.8,3.2078]
[1727066124410,3.2078,2660.1,2659.7,8.68103737]
[1727066124610,3.2078,2660.1,2659.7,0.8366]
[1727066125615,3.5837,2660.1,2659.7,0.8366]
[1727066125913,3.2078,2659.8,2659.2,4.0418]
[1727066126113,3.2078,2659.8,2659.2,4.41782]
[1727066126413,3.2078,2659.8,2659.2,45.21782]
[1727066126805,3.2078,2659.8,2659.3,0.37601]
[1727066127202,3.2078,2659.8,2659.4,0.376]
[1727066127507,3.2078,2659.8,2659.2,45.21782]
[1727066127709,3.2078,2659.8,2659.3,3.58381]
[1727066128610,3.2078,2659.8,2659.2,45.21782]
[1727066129704,3.2078,2659.8,2659.3,0.37601]
[1727066130011,3.2078,2659.8,2659.4,0.37599]
[1727066130608,3.2078,2659.8,2659.5,4.13598]
[1727066130813,3.2078,2659.8,2659.2,44.8418]
[1727066130814,3.2078,2659.8,2659.4,0.37599]
[1727066131311,3.2078,2659.8,2659.4,4.13599]
[1727066131507,3.2078,2659.5,2659.2,41.634]
[1727066131718,3.2078,2659.5,2659.2,0.834]
[1727066131919,3.2078,2659.5,2659.3,3.76]
[1727066132121,3.2078,2659.5,2659.2,4.594]
[1727066132619,3.2078,2659.5,2658.8,0.7704]
[1727066132620,0.37605,2659.1,2658.8,0.7704]
[1727066132806,3.2078,2659.0,2658.8,0.7704]
[1727066134920,3.2078,2659.3,2658.9,3.7608]
[1727066135115,3.2078,2659.3,2658.8,0.7704]
[1727066135626,3.2078,2659.3,2658.8,1.14648]
[1727066136016,3.58382,2659.3,2658.8,0.7704]
[1727066136311,0.93986,2659.9,2659.3,0.37601]
[1727066136312,3.2078,2659.9,2659.3,0.37601]
[1727066136712,3.2078,2659.9,2659.4,0.7847]
[1727066137019,3.2078,2659.9,2659.5,0.37597]
[1727066137214,3.2078,2659.9,2659.5,7.90565421]
[1727066137421,3.2078,2659.9,2659.7,0.37595]
[1727066137616,3.2078,2659.9,2659.8,3.76]
[1727066138221,3.2078,2659.9,2659.8,9.76]
[1727066138421,3.2078,2660.2,2659.8,3.76]
[1727066138746,3.2078,2660.2,2659.6,0.7961]
[1727066139114,3.2078,2660.2,2659.6,1.17207]
[1727066139416,3.2078,2660.2,2659.7,40.8]
[1727066140012,3.2078,2660.2,2659.7,41.17596]
[1727066140211,3.2078,2660.2,2659.7,40.8]
[1727066140816,2.53,2660.5,2659.7,40.8]
[1727066140817,3.2078,2659.9,2659.7,40.8]
[1727066141020,0.7483,2660.6,2659.7,40.8]
[1727066141021,3.58369,2660.2,2659.7,40.8]
[1727066141230,3.2078,2660.2,2659.8,4.71825082]
[1727066141524,3.2078,2660.2,2659.8,13.0543935]
[1727066141723,3.2078,2660.2,2659.9,4.13513]
[1727066141913,3.2078,2660.2,2659.9,3.7592]
[1727066142112,0.765,2661.1,2659.9,3.7592]
[1727066142113,3.58354,2661.3,2660.1,3.2078]
[1727066142427,0.37575,2661.2,2660.2,16.65711325]
[1727066142615,0.37575,2661.2,2660.4,0.37585]
[1727066142811,3.2078,2661.3,2660.3,44.7438]
[1727066143015,3.2078,2661.3,2660.5,3.96573819]
[1727066143217,2.53,2661.5,2660.5,0.37584]
[1727066143218,3.2078,2661.0,2660.5,0.37584]
[1727066143923,3.2078,2661.0,2660.3,41.536]
[1727066143924,3.2078,2661.0,2660.6,1.16233]
[1727066144127,3.2078,2661.0,2660.6,0.7865]
[1727066145423,0.37574,2661.3,2660.6,0.7865]
[1727066145424,3.2078,2660.7,2660.6,0.7865]
[1727066145925,3.2078,2660.7,2660.6,4.5449]
[1727066147618,3.2078,2660.7,2660.6,4.92073]
[1727066147919,3.2078,2660.7,2660.6,4.5449]
[1727066148321,3.2078,2661.1,2660.6,10.5449]
[1727066148523,3.2078,2661.1,2660.6,0.7865]
[1727066148926,3.2078,2661.1,2660.7,0.37581]
[1727066149325,3.2078,2661.1,2660.6,1.16233]
[1727066149532,3.2078,2661.1,2660.7,0.37581]
[1727066149832,3.2078,2661.1,2660.7,0.37582]
[1727066151123,3.2078,2661.1,2660.6,0.7865]
[1727066151124,3.58356,2661.1,2660.6,0.7865]
[1727066151321,3.2078,2661.1,2660.6,0.7865]
[1727066151525,3.2078,2661.1,2660.7,0.37581]
[1727066152329,3.2078,2661.1,2660.6,0.7865]
[1727066152725,3.58357,2661.1,2660.6,0.7865]
[1727066152927,0.37578,2661.0,2660.6,0.7865]
[1727066153428,3.2078,2661.1,2660.6,0.7865]
[1727066154023,3.2078,2660.8,2660.6,0.7865]
[1727066154426,0.37578,2661.0,2660.6,0.7865]
[1727066154832,3.2078,2661.1,2660.6,0.7865]
[1727066155023,3.2078,2661.5,2660.7,23.95880979]
[1727066155229,3.5835,2661.5,2660.9,0.37578]
[1727066155534,3.2078,2661.5,2661.0,0.736]
[1727066156032,3.2078,2661.5,2661.0,13.10633554]
[1727066156238,3.2078,2661.5,2661.3,0.37573]
[1727066156830,3.2078,2661.5,2661.0,13.10633554]
[1727066156831,3.2078,2661.8,2661.4,0.37572]
[1727066157943,3.2078,2661.8,2661.5,0.37569]
[1727066158325,3.58343,2662.1,2661.4,0.37572]
[1727066158525,3.2078,2662.1,2661.3,8.48613951]
[1727066158831,0.37564,2662.0,2661.4,40.8]
[1727066159142,0.37567,2661.8,2661.4,40.8]
[1727066159331,3.58347,2661.8,2661.4,40.8]
[1727066159525,3.2078,2661.8,2661.4,40.8]
[1727066160627,0.8037,2662.2,2661.4,44.93251]
[1727066160628,3.2078,2662.1,2661.4,44.93251]
[1727066160826,3.2078,2662.1,2661.3,0.37573]
[1727066161030,3.58343,2662.1,2661.3,0.37573]
[1727066161230,3.58343,2662.1,2661.3,12.65329649]
[1727066161435,3.58343,2662.1,2661.6,3.2078]
[1727066161436,3.2078,2662.1,2661.6,3.2078]
[1727066161636,3.2078,2662.1,2661.4,45.70639595]
[1727066161637,3.58342,2662.1,2661.7,0.7837]
[1727066162828,0.37563,2662.0,2661.7,0.7837]
[1727066163039,0.37566,2661.9,2661.7,0.7837]
[1727066163234,0.37567,2661.8,2661.4,40.8]
[1727066163436,3.2078,2662.1,2661.4,40.8]
[1727066163629,0.37564,2662.0,2661.4,40.8]
[1727066164237,3.2078,2662.1,2661.4,40.8]
[1727066164543,3.2078,2662.4,2661.6,2.53]
[1727066165027,3.2078,2662.4,2661.7,8.06713699]
[1727066165230,0.37559,2662.3,2661.7,8.06713699]
[1727066165425,3.2078,2662.4,2661.7,8.06713699]
[1727066165634,3.58343,2662.1,2661.5,3.2078]
[1727066166026,3.2078,2662.1,2661.6,4.32196227]
[1727066166436,3.2078,2662.4,2661.6,11.81573204]
[1727066166740,3.58339,2662.4,2661.8,3.2078]
[1727066166943,3.2078,2662.4,2661.8,3.2078]
[1727066167134,3.2078,2662.4,2661.9,0.7549]
[1727066167332,3.2078,2662.4,2662.0,0.8012]
[1727066167530,3.58338,2662.4,2662.0,0.8012]
[1727066168127,3.2078,2662.4,2662.0,0.8012]
[1727066168330,0.7404,2662.6,2662.0,0.8012]
[1727066168531,3.2078,2662.7,2662.0,0.8012]
[1727066168757,0.37555,2662.6,2662.0,0.8012]
[1727066168936,3.58334,2662.7,2662.0,1.17683]
[1727066169241,3.58334,2662.7,2662.1,0.37562]
[1727066169440,3.2078,2662.7,2662.0,0.8012]
[1727066169635,4.7201,2663.0,2662.1,3.2078]
[1727066169835,3.2078,2662.7,2662.1,3.2078]
[1727066170045,0.37556,2662.6,2662.1,3.2078]
[1727066170340,3.2078,2662.7,2662.1,3.2078]
[1727066170635,3.2078,2662.3,2662.0,0.8012]
[1727066171231,0.37561,2662.2,2662.0,0.8012]
[1727066171442,3.2078,2662.6,2662.1,3.756]
[1727066171743,1.45313273,2663.4,2662.5,3.2078]
[1727066171744,3.2078,2663.1,2662.5,3.2078]
[1727066172038,0.7201,2663.5,2662.4,2.53]
[1727066172039,3.2078,2663.5,2663.0,2.53]
[1727066172240,3.2078,2663.5,2663.1,41.17548]
[1727066172543,0.37539,2663.8,2663.2,0.37546]
[1727066172744,3.2078,2664.0,2663.4,2.53]
[1727066173044,3.2078,2664.0,2663.6,0.3754]
[1727066173236,3.2078,2664.4,2663.7,3.7544]
[1727066173432,3.2078,2664.4,2663.8,0.37538]
[1727066173835,3.2078,2664.4,2663.7,9.26679]
[1727066174037,3.2078,2664.4,2663.7,5.16202492]
[1727066174234,0.37532,2664.3,2663.7,5.16202492]
[1727066175137,3.2078,2664.4,2663.8,0.37537]
[1727066175437,3.2078,2664.7,2664.4,0.37529]
[1727066175636,3.2078,2664.7,2664.5,1.14487]
[1727066175838,3.58296,2665.4,2664.6,3.7528]
[1727066176050,3.2078,2665.4,2664.5,11.67278886]
[1727066176237,3.2078,2665.6,2664.7,6.55364986]
[1727066176441,3.58293,2665.6,2664.8,0.37523]
[1727066176942,3.58293,2665.6,2664.9,3.2078]
[1727066177141,3.2078,2665.6,2664.9,3.2078]
[1727066177345,3.2078,2665.6,2664.9,7.98771783]
[1727066177535,3.2078,2665.6,2665.0,14.74947962]
[1727066177739,3.2078,2665.6,2665.1,5.688]
[1727066178036,3.2078,2665.6,2665.4,0.37515]
[1727066178444,3.2078,2665.6,2665.2,15.75798567]
[1727066178445,3.58293,2665.6,2665.2,5.688]
[1727066178641,3.2078,2665.6,2665.3,40.8]
[1727066178846,3.2078,2665.6,2665.3,48.62324404]
[1727066179240,3.2078,2665.6,2665.4,7.65372613]
[1727066179446,0.37509,2665.9,2665.5,3.752]
[1727066179652,0.37509,2665.9,2665.4,3.90172613]
[1727066179851,0.37508,2666.0,2665.3,40.8]
[1727066180142,0.37508,2665.9,2665.4,4.26471884]
[1727066180343,3.2078,2666.1,2665.4,4.26471884]
[1727066180542,0.37509,2665.9,2665.4,4.26471884]
[1727066180942,0.37508,2666.0,2665.4,4.26471884]
[1727066181142,3.2078,2665.7,2665.3,40.8]
[1727066181446,0.37513,2665.6,2664.9,9.53302]
[1727066181637,0.93762,2666.2,2664.9,9.53302]
[1727066181638,3.58288,2666.0,2665.2,0.37518]
[1727066181844,3.58288,2666.0,2665.3,3.97066068]
[1727066182042,3.58288,2666.0,2665.2,0.37518]
[1727066182246,3.58288,2666.0,2665.1,2.53]
[1727066182449,0.37508,2665.9,2665.3,4.31568743]
[1727066182638,3.2078,2665.7,2665.2,4.31568743]
[1727066182843,3.2078,2665.4,2665.1,3.2742]
[1727066183151,3.2078,2666.0,2665.2,12.73816732]
[1727066183353,3.58288,2666.0,2665.2,12.73816732]
[1727066183644,0.37509,2665.9,2665.2,12.73816732]
[1727066183841,0.37509,2665.9,2665.4,3.2078]
[1727066184038,3.2078,2666.0,2665.2,12.36298732]
[1727066184338,3.2078,2666.0,2665.1,6.482]
[1727066184537,3.2078,2666.0,2665.3,4.00611956]
[1727066184737,3.2078,2666.0,2665.2,12.04551398]
[1727066184943,3.2078,2665.7,2665.2,12.04551398]
[1727066185142,3.2078,2665.7,2665.1,6.482]
[1727066185344,3.2078,2665.7,2665.3,3.95022385]
[1727066185550,3.58291,2665.7,2665.2,11.60390477]
[1727066185747,3.2078,2665.7,2665.4,7.65368092]
[1727066186048,3.2078,2665.7,2665.3,11.90227956]
[1727066186346,0.37515,2665.5,2665.2,11.96627392]
[1727066186543,0.37517,2665.3,2665.2,11.96627392]
[1727066186846,0.37518,2665.2,2664.7,12.4781]
[1727066187048,3.2078,2665.4,2664.7,12.4781]
[1727066187049,0.37518,2665.3,2664.7,12.4781]
[1727066187350,0.37517,2665.3,2664.8,3.97576219]
[1727066187547,3.2078,2665.4,2664.8,4.35099219]
[1727066187854,3.58291,2665.8,2665.1,2.90519]
[1727066188046,3.58291,2665.8,2665.4,2.53]
[1727066189048,3.5829,2665.8,2665.4,2.53]
[1727066189441,0.37511,2665.7,2665.4,2.53]
[1727066191247,3.2078,2666.1,2665.4,2.53]
[1727066191443,4.0004,2666.4,2665.7,2.53]
[1727066191647,4.0004,2666.4,2665.5,9.33795456]
[1727066191648,3.2078,2666.1,2665.5,9.33795456]
[1727066191842,0.37508,2666.0,2665.6,40.8]
[1727066192348,3.2078,2666.1,2665.7,2.90511]
[1727066193040,3.2078,2666.1,2665.7,2.53]
[1727066193239,3.2078,2666.1,2665.7,2.90511]
[1727066193946,4.0004,2666.4,2665.7,2.53]
[1727066194139,4.0004,2666.4,2666.0,0.37507]
[1727066194140,3.2078,2666.4,2666.0,0.37507]
[1727066195148,3.2078,2666.4,2665.9,0.37508]
[1727066195750,3.58281,2666.4,2665.9,0.37508]
[1727066196254,3.2078,2666.4,2666.0,0.37507]
[1727066196751,3.58282,2666.4,2665.9,0.37508]
[1727066197146,0.37503,2666.3,2665.8,15.60449129]
[1727066197344,3.58282,2666.4,2665.9,0.37508]
[1727066197549,0.37503,2666.3,2665.8,12.39669129]
[1727066198057,3.58282,2666.4,2665.9,0.37508]
[1727066198257,0.37503,2666.3,2665.8,8.22398851]
[1727066198557,3.58282,2666.4,2665.9,0.37508]
[1727066199548,3.2078,2666.4,2666.0,0.37507]
[1727066199753,3.2078,2666.4,2666.1,0.37505]
[1727066199949,3.2078,2666.4,2666.1,2.90505]
[1727066200153,0.7013,2666.7,2666.3,0.37503]
[1727066200361,0.7013,2666.7,2666.2,0.7621]
[1727066200851,4.31606,2666.8,2666.3,0.37502]
[1727066201160,0.37497,2666.7,2666.3,0.37502]
[1727066201654,0.37497,2666.7,2666.2,1.13714]
[1727066201956,3.2078,2666.5,2666.2,0.7621]
[1727066202257,0.7333,2666.8,2666.2,0.7621]
[1727066202258,0.37497,2666.7,2666.4,2.53]
[1727066202453,4.31606,2666.8,2666.4,2.53]
[1727066202856,4.31607,2666.8,2666.4,2.53]
[1727066203152,0.37498,2666.7,2666.4,2.53]
[1727066203356,0.37499,2666.6,2666.4,2.53]
[1727066203558,0.37497,2666.7,2666.4,2.53]
[1727066204063,4.31606,2666.8,2666.4,2.53]
[1727066204252,3.2078,2666.8,2666.4,2.90501]
[1727066204862,3.2078,2667.1,2666.7,2.90496]
[1727066205663,0.37493,2667.0,2666.7,2.53]
[1727066205853,3.2078,2667.5,2667.1,0.37491]
[1727066206056,3.2078,2667.5,2667.4,2.53]
[1727066206356,3.2078,2667.5,2667.1,41.17491]
[1727066206567,3.2078,2667.5,2667.3,2.53]
[1727066206751,0.37487,2667.4,2667.3,2.53]
[1727066206949,3.5826,2668.0,2667.3,2.53]
[1727066207254,3.5826,2668.0,2667.4,2.53]
[1727066207255,0.37483,2667.8,2667.4,2.53]
[1727066207455,0.37483,2667.7,2667.4,2.53]
[1727066207854,3.2078,2668.0,2667.4,2.53]
[1727066208055,0.37485,2667.6,2667.4,2.53]
[1727066208262,0.37486,2667.6,2667.4,2.53]
[1727066208454,0.37488,2667.4,2667.1,46.5378]
[1727066208761,1.17637,2667.5,2667.1,5.7378]
[1727066209261,0.37485,2667.6,2667.4,2.53]
[1727066209461,3.2078,2667.7,2667.4,2.53]
[1727066209868,0.37485,2667.6,2667.4,2.53]
[1727066210360,3.2078,2667.7,2667.4,2.53]
[1727066211053,3.2078,2667.7,2667.4,2.90487]
[1727066211452,3.2078,2667.7,2667.5,0.37485]
[1727066211647,0.37478,2668.1,2667.6,0.37485]
[1727066211853,3.2078,2668.2,2667.7,2.53]
[1727066212057,3.2078,2667.8,2667.4,2.53]
[1727066212252,0.37485,2667.6,2667.4,2.53]
[1727066212453,3.2078,2667.8,2667.4,2.53]
[1727066212653,3.2078,2668.1,2667.7,2.53]
[1727066213055,3.2078,2668.1,2667.8,0.8065]
[1727066213459,3.58258,2668.1,2667.7,2.53]
[1727066213953,3.2078,2668.1,2667.7,2.53]
[1727066214358,3.2078,2668.1,2667.7,2.90483]
[1727066214563,3.2078,2668.1,2667.7,2.53]
[1727066214762,3.2078,2668.1,2667.8,0.37481]
[1727066215071,3.2078,2668.1,2667.9,1.1363]
[1727066215257,0.8015,2668.4,2668.0,0.37479]
[1727066215452,3.58252,2668.5,2668.2,2.53]
[1727066215663,0.37473,2668.4,2668.2,2.53]
[1727066215859,3.2078,2668.5,2668.2,2.53]
[1727066216060,3.58253,2668.5,2668.2,2.53]
[1727066216762,0.37475,2668.3,2668.2,2.53]
[1727066216953,0.37474,2668.4,2668.2,2.53]
[1727066217260,0.37475,2668.3,2668.2,2.53]
[1727066217562,3.748,2668.4,2667.9,3.2915]
[1727066217758,3.2078,2668.5,2667.9,3.2915]
[1727066217972,0.37478,2668.1,2667.9,3.2915]
[1727066218166,0.37478,2668.1,2666.5,10.31547]
[1727066218167,3.2078,2668.0,2667.3,3.2078]
[1727066218352,3.2078,2668.0,2667.2,2.53]
[1727066218353,3.2078,2667.6,2667.2,2.53]
[1727066219164,3.2078,2667.6,2667.2,2.9049]
[1727066219365,3.2078,2667.6,2667.5,2.53]
[1727066220562,3.2078,2667.6,2666.9,3.3487]
[1727066220563,12.9566,2667.6,2666.9,3.3487]
[1727066220763,3.2078,2667.2,2666.9,2.53]
[1727066221756,3.5827,2667.2,2666.9,2.53]
[1727066222764,0.37492,2667.1,2666.9,2.53]
[1727066223560,3.2078,2667.2,2666.9,2.53]
[1727066223860,3.2078,2667.6,2667.0,0.37492]
[1727066224059,3.58265,2667.6,2667.4,2.53]
[1727066224258,0.37486,2667.5,2667.4,2.53]
[1727066224459,0.3749,2667.3,2667.1,2.53]
[1727066224859,3.5827,2667.3,2667.1,2.53]
[1727066225269,3.2078,2667.3,2667.1,2.53]
[1727066226366,3.2078,2667.6,2667.1,2.53]
[1727066226568,3.2078,2667.6,2666.8,3.2078]
[1727066226569,3.2078,2667.6,2667.5,2.53]
[1727066229068,3.2078,2667.6,2667.5,6.2788]
[1727066229359,5.03573273,2668.0,2667.5,6.2788]
[1727066229561,3.5826,2668.0,2667.5,2.53]
[1727066229772,0.37482,2667.8,2667.5,2.53]
[1727066230072,0.37482,2667.8,2667.6,40.8]
[1727066230269,5.6675,2668.3,2667.4,0.7469]
[1727066230270,3.2078,2667.7,2667.4,0.7469]
[1727066230467,0.37485,2667.6,2667.4,0.7469]
[1727066230670,3.2078,2667.7,2667.4,0.7469]
[1727066230671,3.58264,2667.7,2667.4,0.7469]
[1727066231060,3.2078,2667.7,2667.4,3.2769]
[1727066231971,0.37485,2667.6,2667.4,3.2769]
[1727066232472,0.37485,2667.6,2667.1,40.8]
[1727066232473,0.3749,2667.3,2667.1,2.53]
[1727066232777,3.2078,2667.4,2667.1,2.53]
[1727066232982,3.2078,2667.4,2666.9,41.97423]
[1727066233173,3.2078,2667.4,2667.1,2.53]
[1727066233174,3.58268,2667.4,2667.1,2.53]
[1727066233373,3.2078,2667.4,2667.1,2.53]
[1727066235071,3.58268,2667.4,2667.1,2.53]
[1727066235666,3.2078,2667.4,2667.1,2.53]
[1727066235867,3.58268,2667.4,2667.1,2.53]
[1727066236480,3.2078,2667.4,2667.1,2.53]
[1727066237163,3.2078,2667.4,2666.5,2.53]
[1727066237164,0.37499,2666.6,2666.5,2.53]
[1727066237369,0.37499,2666.6,2666.0,0.97972163]
[1727066237370,3.2078,2666.7,2666.2,1.15423]
[1727066237564,0.96795569,2666.9,2666.5,2.53]
[1727066237771,3.2078,2666.9,2666.5,2.53]
[1727066237979,3.2078,2666.9,2666.8,2.53]
[1727066238977,7.33234,2666.9,2666.8,2.53]
[1727066239277,0.37499,2666.6,2666.5,2.53]
[1727066239474,12.9574,2666.9,2666.5,2.53]
[1727066239475,0.37498,2666.7,2666.5,2.53]
[1727066239780,0.37497,2666.7,2666.5,2.53]
[1727066240077,4.17575569,2666.9,2666.5,2.53]
[1727066240281,3.2078,2666.6,2666.5,2.53]
[1727066240670,7.33319,2666.6,2666.5,2.53]
[1727066240875,3.58279,2666.6,2666.5,2.53]
[1727066241476,3.2078,2666.6,2666.5,2.53]
[1727066241975,4.17575569,2666.9,2666.5,2.53]
[1727066242197,4.17575569,2667.2,2666.8,2.53]
[1727066242477,0.37492,2667.1,2666.8,2.53]
[1727066242676,4.17575569,2667.2,2666.8,2.53]
[1727066242873,0.37494,2666.9,2666.8,2.53]
[1727066243080,7.33234,2666.9,2666.8,2.53]
[1727066243677,7.92535569,2666.9,2666.5,2.53]
[1727066243874,0.96795569,2666.8,2666.5,2.53]
[1727066244087,3.2078,2666.6,2666.5,2.53]
[1727066244288,3.2078,2666.6,2666.5,2.05]
[1727066246283,0.96795569,2666.8,2666.5,2.05]
[1727066246984,5.03588273,2666.9,2666.5,2.05]
[1727066246985,4.55070569,2666.9,2666.5,2.05]
[1727066247177,4.55070569,2666.9,2666.8,2.05]
[1727066247783,7.33235,2666.9,2666.5,2.05]
[1727066248013,4.66093273,2666.6,2665.8,18.39225]
[1727066248282,3.58288,2665.9,2665.8,18.39225]
[1727066248491,4.55501602,2665.9,2665.8,18.39225]
[1727066248677,8.30621602,2665.9,2665.8,18.39225]
[1727066249281,7.33408,2665.9,2665.8,18.39225]
[1727066249482,6.959,2665.9,2665.8,18.39225]
[1727066249688,0.97213602,2666.0,2665.8,18.39225]
[1727066249891,0.97213602,2666.1,2665.8,18.39225]
[1727066250189,4.17993602,2666.2,2666.0,2.05]
[1727066250381,4.17993602,2666.2,2665.8,18.39225]
[1727066250382,4.17993602,2666.2,2665.8,20.91225]
[1727066250982,3.2078,2666.2,2665.8,20.91225]
[1727066252188,3.2078,2666.2,2665.9,0.7726]
[1727066252791,0.97213602,2666.5,2666.1,2.52]
[1727066253091,4.17993602,2666.9,2666.5,0.37499]
[1727066253284,3.2078,2666.9,2666.4,2.52]
[1727066253685,3.2078,2666.9,2666.4,2.89501]
[1727066254086,3.2078,2666.9,2666.5,40.8]
[1727066254288,3.2078,2666.6,2666.5,40.8]
[1727066255292,3.58275,2666.9,2666.5,40.8]
[1727066255499,3.2078,2666.9,2666.5,40.8]
[1727066255693,3.58275,2666.9,2666.5,40.8]
[1727066255893,0.37496,2666.8,2666.5,40.8]
[1727066256994,4.17993602,2666.9,2666.5,40.8]
[1727066256995,4.55488602,2666.9,2666.5,40.8]
[1727066257793,3.2078,2666.9,2666.5,40.8]
[1727066257987,4.17993602,2666.9,2666.5,40.8]
[1727066258188,4.17993602,2666.9,2666.5,0.375]
[1727066258392,4.55489602,2666.9,2666.4,2.52]
[1727066258599,3.2078,2666.9,2666.4,2.52]
[1727066258890,3.2078,2666.9,2666.5,40.8]
[1727066259097,3.2078,2666.6,2666.5,40.8]
[1727066259292,3.2078,2666.6,2665.8,18.39225]
[1727066259595,3.58287,2666.0,2665.8,18.39225]
[1727066259790,3.2078,2666.0,2665.8,18.39225]
[1727066260691,3.7512,2665.9,2665.8,18.39225]
[1727066261995,3.2078,2666.0,2665.8,18.39225]
[1727066263801,6.959,2666.0,2665.8,18.39225]
[1727066264098,3.2078,2666.0,2665.8,18.39225]
[1727066265588,6.959,2666.0,2665.8,18.39225]
[1727066266197,3.2078,2666.0,2665.8,18.39225]
[1727066266400,3.58287,2666.0,2665.8,18.39225]
[1727066267100,3.2078,2666.0,2665.8,18.39225]
[1727066269500,3.58287,2666.0,2665.8,18.39225]
[1727066269805,3.2078,2666.0,2665.8,18.39225]
[1727066270093,3.58287,2666.0,2665.8,18.39225]
[1727066270296,3.2078,2666.0,2665.9,2.05]
[1727066270688,6.959,2666.0,2665.9,2.05]
[1727066270892,3.2078,2666.0,2665.9,2.05]
[1727066271099,6.959,2666.0,2665.9,2.05]
[1727066271796,3.2078,2666.0,2665.9,2.05]
[1727066272800,3.46052644,2666.5,2665.9,2.05]
[1727066272801,5.09810348,2666.6,2665.9,11.8012]
[1727066272994,3.2078,2666.7,2666.5,2.05]
[1727066273192,3.2078,2666.7,2666.6,0.7952]
[1727066273397,3.2078,2666.7,2666.6,1.5422]
[1727066278298,0.97110348,2666.9,2666.6,1.5422]
[1727066278907,0.97110348,2666.9,2666.6,1.91719]
[1727066279207,0.97110348,2667.2,2666.9,0.37494]
[1727066279401,8.30590348,2667.3,2667.1,2.05]
[1727066279705,3.2078,2667.3,2667.2,0.8059]
[1727066280295,3.58269,2667.3,2667.2,0.8059]
[1727066280502,5.03582273,2667.3,2667.2,0.8059]
[1727066280704,4.66093273,2667.3,2667.2,0.8059]
[1727066280898,14.78462273,2667.3,2667.2,0.8059]
[1727066281098,14.78462273,2667.3,2666.7,3.5715]
[1727066281099,0.37491,2667.2,2666.7,3.5715]
[1727066281299,3.2078,2666.9,2666.7,3.5715]
[1727066281909,4.18012009,2666.9,2666.7,3.5715]
[1727066282710,4.18012009,2666.9,2666.7,2.8093]
[1727066283013,0.97232009,2666.8,2666.7,2.8093]
[1727066283402,0.97232009,2666.8,2666.7,3.18427]
[1727066283604,4.18012009,2666.9,2666.7,2.8093]
[1727066283804,0.97232009,2666.8,2666.7,2.8093]
[1727066284501,1.34728009,2666.8,2666.7,2.8093]
[1727066284709,9.93719307,2666.8,2666.2,2.05]
[1727066284905,0.97219678,2666.3,2666.2,2.05]
[1727066285307,0.97219678,2666.3,2666.2,2.42504]
[1727066285518,0.97219678,2666.3,2666.2,2.05]
[1727066286214,4.17999678,2666.4,2666.2,2.05]
[1727066286799,0.97219678,2666.3,2666.2,2.05]
[1727066287000,4.66609517,2666.4,2666.2,2.05]
[1727066287206,0.9719582,2666.3,2666.2,2.05]
[1727066288811,4.5547782,2666.4,2666.2,2.05]
[1727066289203,4.1797582,2666.4,2666.2,2.05]
[1727066291207,1.3469882,2666.3,2666.2,2.05]
[1727066291522,1.3468601,2666.3,2666.2,2.05]
[1727066291716,0.37503,2666.3,2666.2,2.05]
[1727066292014,1.83332517,2666.3,2666.2,2.05]
[1727066294014,1.45829517,2666.3,2666.2,2.05]
[1727066294711,1.83332517,2666.3,2666.2,2.05]
[1727066294932,1.45829517,2666.3,2666.2,2.05]
[1727066295509,3.2078,2666.4,2666.2,2.42504]
[1727066295716,0.97173366,2666.6,2666.5,0.375]
[1727066295923,0.97173366,2666.7,2666.5,0.375]
[1727066296118,7.20064436,2667.1,2667.0,0.37493]
[1727066296119,2.43044436,2667.1,2667.0,0.37493]
[1727066296319,3.2078,2667.4,2667.0,5.7996]
[1727066296618,3.2078,2667.4,2667.3,2.05]
[1727066296816,3.2078,2667.4,2667.3,6.17369]
[1727066297004,0.7599,2667.9,2667.4,0.37487]
[1727066297206,4.3999,2668.0,2667.7,2.05]
[1727066297516,0.37481,2667.9,2667.7,2.05]
[1727066297916,4.39989,2668.0,2667.7,2.05]
[1727066298510,4.0251,2668.0,2667.7,2.05]
[1727066301209,3.2078,2668.0,2667.8,0.37482]
[1727066301409,3.2078,2668.0,2667.7,2.42483]
[1727066302207,3.2078,2668.0,2667.7,2.05]
[1727066305521,3.2078,2668.0,2667.7,3.17473]
[1727066305822,3.2078,2668.0,2667.7,2.7999]
[1727066306220,3.2078,2668.0,2667.7,3.17473]
[1727066306615,3.2078,2668.0,2667.7,3.17472]
[1727066307118,0.37476,2668.2,2667.7,3.17472]
[1727066307322,0.37476,2668.2,2668.0,2.05]
[1727066307825,3.58255,2668.3,2668.0,2.05]
[1727066308121,3.58255,2668.3,2667.7,0.7499]
[1727066308122,3.2078,2668.3,2668.2,2.05]
[1727066309010,3.2078,2668.3,2668.2,2.8262]
[1727066310013,0.37476,2668.2,2668.0,2.05]
[1727066311325,3.2078,2668.3,2668.0,2.05]
[1727066311822,0.37476,2668.2,2668.0,2.05]
[1727066312022,0.37477,2668.1,2667.7,2.7999]
[1727066312419,1.12637,2668.2,2667.7,2.7999]
[1727066313022,0.37478,2668.1,2667.7,2.7999]